[Event "Live Chess"]
[Site "Chess.com"]
[Date "2024.06.02"]
[Round "-"]
[White "jellhhggffhjjjjjj"]
[Black "juniortay"]
[Result "0-1"]
[WhiteElo "479"]
[BlackElo "2371"]
[TimeControl "300"]
[EndTime "2:28:10 PDT"]
[Termination "juniortay won by checkmate"]

1. d4 {[%clk 0:04:46.5]} 1... Nf6 {[%clk 0:04:56.3]} 2. Nf3 {[%clk 0:04:44.6]}
2... g6 {[%clk 0:04:50.9]} 3. Bf4 {[%clk 0:04:39.5]} 3... Bg7 {[%clk 0:04:48.7]}
4. e3 {[%clk 0:04:35.8]} 4... O-O {[%clk 0:04:47.5]} 5. c4 {[%clk 0:04:31]} 5...
d6 {[%clk 0:04:46.2]} 6. Nc3 {[%clk 0:04:30.1]} 6... Nbd7 {[%clk 0:04:45]} 7. h4
{[%clk 0:04:29.4]} 7... h5 {[%clk 0:04:42.9]} 8. Ng5 {[%clk 0:04:25.4]} 8... e5
{[%clk 0:04:37.6]} 9. dxe5 {[%clk 0:04:17.5]} 9... dxe5 {[%clk 0:04:32.4]} 10.
Bg3 {[%clk 0:04:12.9]} 10... Qe7 {[%clk 0:04:28.7]} 11. f3 {[%clk 0:04:06.8]}
11... c6 {[%clk 0:04:26.2]} 12. Bf2 {[%clk 0:04:05.5]} 12... Nc5 {[%clk
0:04:23.2]} 13. Be2 {[%clk 0:03:47.7]} 13... Rd8 {[%clk 0:04:20.2]} 14. Qc2
{[%clk 0:03:30.2]} 14... Bf5 {[%clk 0:04:18.4]} 15. e4 {[%clk 0:03:27.7]} 15...
Bc8 {[%clk 0:04:12.5]} 16. O-O {[%clk 0:03:14.5]} 16... Ne6 {[%clk 0:04:11.1]}
17. Nxe6 {[%clk 0:03:07.9]} 17... Bxe6 {[%clk 0:04:08.4]} 18. b3 {[%clk
0:03:05.5]} 18... Bh6 {[%clk 0:04:02.5]} 19. g4 {[%clk 0:02:57.9]} 19... hxg4
{[%clk 0:03:59.2]} 20. fxg4 {[%clk 0:02:56.6]} 20... Bxg4 {[%clk 0:03:56.8]} 21.
h5 {[%clk 0:02:48.1]} 21... Rd2 {[%clk 0:03:49.1]} 22. Qc1 {[%clk 0:02:34]}
22... Bxe2 {[%clk 0:03:43.3]} 23. Bh4 {[%clk 0:02:26.8]} 23... Qe6 {[%clk
0:03:31.1]} 24. Rf2 {[%clk 0:02:22.2]} 24... Ng4 {[%clk 0:03:21.5]} 25. Rxe2
{[%clk 0:02:19.1]} 25... Rxe2 {[%clk 0:03:17.2]} 26. Bg5 {[%clk 0:02:11.7]}
26... Ne3 {[%clk 0:03:08]} 27. Bxh6 {[%clk 0:02:07.2]} 27... Qg4+ {[%clk
0:03:06]} 28. Kh1 {[%clk 0:01:57.6]} 28... Qg2# {[%clk 0:03:03.6]} 0-1

[Event "Live Chess"]
[Site "Chess.com"]
[Date "2024.06.02"]
[Round "-"]
[White "GwaryTek"]
[Black "LL220284LL"]
[Result "0-1"]
[WhiteElo "1896"]
[BlackElo "2507"]
[TimeControl "300"]
[EndTime "2:28:22 PDT"]
[Termination "LL220284LL won on time"]

1. d3 {[%clk 0:04:52.7]} 1... d5 {[%clk 0:04:58.7]} 2. Nf3 {[%clk 0:04:52.3]}
2... c6 {[%clk 0:04:56.9]} 3. g3 {[%clk 0:04:50]} 3... g6 {[%clk 0:04:56.4]} 4.
Bg2 {[%clk 0:04:49.9]} 4... Bg7 {[%clk 0:04:55.7]} 5. O-O {[%clk 0:04:49.6]}
5... Nf6 {[%clk 0:04:54.5]} 6. Nbd2 {[%clk 0:04:48.4]} 6... O-O {[%clk
0:04:53.3]} 7. c3 {[%clk 0:04:47.3]} 7... Nbd7 {[%clk 0:04:52.9]} 8. e4 {[%clk
0:04:46.4]} 8... e5 {[%clk 0:04:52.2]} 9. a4 {[%clk 0:04:44.8]} 9... Nc5 {[%clk
0:04:50]} 10. Qc2 {[%clk 0:04:42.7]} 10... a5 {[%clk 0:04:49.3]} 11. Nxe5 {[%clk
0:04:26.6]} 11... dxe4 {[%clk 0:04:43.6]} 12. dxe4 {[%clk 0:04:22.8]} 12... Re8
{[%clk 0:04:35.6]} 13. Nec4 {[%clk 0:04:13.8]} 13... b5 {[%clk 0:04:23.6]} 14.
axb5 {[%clk 0:04:10.4]} 14... cxb5 {[%clk 0:04:23.5]} 15. Ne3 {[%clk 0:04:05.2]}
15... Rb8 {[%clk 0:04:19]} 16. Nb3 {[%clk 0:03:24.2]} 16... Nxb3 {[%clk
0:04:12.1]} 17. Qxb3 {[%clk 0:03:23]} 17... Nxe4 {[%clk 0:04:09]} 18. Rd1 {[%clk
0:03:13.7]} 18... Qb6 {[%clk 0:03:43.6]} 19. Bd2 {[%clk 0:02:53.2]} 19... Be6
{[%clk 0:03:38]} 20. Qc2 {[%clk 0:02:52.1]} 20... Nxd2 {[%clk 0:03:35.4]} 21.
Rxd2 {[%clk 0:02:39.1]} 21... a4 {[%clk 0:03:29.7]} 22. Re1 {[%clk 0:02:26.5]}
22... Bb3 {[%clk 0:03:25.9]} 23. Qc1 {[%clk 0:02:04.6]} 23... b4 {[%clk
0:03:21.2]} 24. Nd5 {[%clk 0:01:49.8]} 24... Rxe1+ {[%clk 0:03:01.5]} 25. Qxe1
{[%clk 0:01:45.2]} 25... Bxd5 {[%clk 0:03:00.7]} 26. Rxd5 {[%clk 0:01:20.3]}
26... bxc3 {[%clk 0:02:56.5]} 27. bxc3 {[%clk 0:01:18.8]} 27... a3 {[%clk
0:02:54.8]} 28. Rd1 {[%clk 0:00:14.3]} 28... Qb2 {[%clk 0:02:46.4]} 29. Bd5
{[%clk 0:00:11.7]} 29... Rf8 {[%clk 0:02:43.4]} 30. Rb1 {[%clk 0:00:08.3]} 30...
Qxc3 {[%clk 0:02:42.5]} 31. Qxc3 {[%clk 0:00:05.1]} 31... Bxc3 {[%clk
0:02:42.4]} 32. Rb3 {[%clk 0:00:03.2]} 32... Bb2 {[%clk 0:02:40.5]} 33. Rb7
{[%clk 0:00:00.7]} 33... Kg7 {[%clk 0:02:35.8]} 0-1

[Event "Live Chess"]
[Site "Chess.com"]
[Date "2024.06.02"]
[Round "-"]
[White "AndyJWise"]
[Black "KeithArkell"]
[Result "0-1"]
[WhiteElo "1036"]
[BlackElo "2414"]
[TimeControl "300"]
[EndTime "2:28:26 PDT"]
[Termination "KeithArkell won by resignation"]

1. d4 {[%clk 0:04:56.6]} 1... e6 {[%clk 0:04:58.8]} 2. Nf3 {[%clk 0:04:54.2]}
2... Nf6 {[%clk 0:04:58]} 3. c4 {[%clk 0:04:52.9]} 3... Bb4+ {[%clk 0:04:56.6]}
4. Nc3 {[%clk 0:04:51.6]} 4... c5 {[%clk 0:04:55.5]} 5. e3 {[%clk 0:04:46.1]}
5... Bxc3+ {[%clk 0:04:54]} 6. bxc3 {[%clk 0:04:45]} 6... Ne4 {[%clk 0:04:52.5]}
7. Bb2 {[%clk 0:04:42.6]} 7... O-O {[%clk 0:04:51]} 8. g3 {[%clk 0:04:39.9]}
8... f5 {[%clk 0:04:50]} 9. Bg2 {[%clk 0:04:38.2]} 9... d6 {[%clk 0:04:49.3]}
10. O-O {[%clk 0:04:33.6]} 10... Nc6 {[%clk 0:04:48.5]} 11. a3 {[%clk
0:04:27.2]} 11... Na5 {[%clk 0:04:47.5]} 12. Nd2 {[%clk 0:04:18.3]} 12... Nxd2
{[%clk 0:04:45.9]} 13. Qxd2 {[%clk 0:04:17.2]} 13... Nxc4 {[%clk 0:04:45]} 14.
Qc2 {[%clk 0:04:16.3]} 14... Nxb2 {[%clk 0:04:44.2]} 15. Qxb2 {[%clk 0:04:14.5]}
15... Rb8 {[%clk 0:04:42.1]} 16. a4 {[%clk 0:04:12.2]} 16... Qc7 {[%clk
0:04:41.1]} 17. Rfc1 {[%clk 0:04:06.6]} 17... b6 {[%clk 0:04:39.8]} 18. Rab1
{[%clk 0:04:00.8]} 18... Bb7 {[%clk 0:04:38.6]} 19. Bxb7 {[%clk 0:03:55.2]}
19... Qxb7 {[%clk 0:04:37.3]} 20. a5 {[%clk 0:03:52.8]} 20... Qc6 {[%clk
0:04:35.4]} 21. axb6 {[%clk 0:03:50.8]} 21... axb6 {[%clk 0:04:34.6]} 22. Qa2
{[%clk 0:03:38.8]} 22... d5 {[%clk 0:04:27.8]} 23. c4 {[%clk 0:03:24.7]} 23...
Ra8 {[%clk 0:04:24.7]} 24. Qd2 {[%clk 0:03:07.5]} 24... Rfd8 {[%clk 0:04:15.6]}
25. cxd5 {[%clk 0:03:02.9]} 25... Rxd5 {[%clk 0:04:13.1]} 26. Qc3 {[%clk
0:02:17.2]} 26... h6 {[%clk 0:04:04.1]} 27. dxc5 {[%clk 0:02:12]} 27... Rxc5
{[%clk 0:04:02.4]} 28. Qd4 {[%clk 0:02:01.3]} 28... Rxc1+ {[%clk 0:04:00.5]} 0-1

[Event "Live Chess"]
[Site "Chess.com"]
[Date "2024.06.02"]
[Round "-"]
[White "chess5013"]
[Black "Tushinskiy"]
[Result "0-1"]
[WhiteElo "1301"]
[BlackElo "2281"]
[TimeControl "300"]
[EndTime "2:28:28 PDT"]
[Termination "Tushinskiy won by checkmate"]

1. d4 {[%clk 0:04:57.7]} 1... d5 {[%clk 0:04:58.9]} 2. Bf4 {[%clk 0:04:56.5]}
2... c6 {[%clk 0:04:58.8]} 3. e3 {[%clk 0:04:55.5]} 3... Nf6 {[%clk 0:04:58.4]}
4. c3 {[%clk 0:04:54.5]} 4... e6 {[%clk 0:04:57.5]} 5. Nd2 {[%clk 0:04:53.5]}
5... Bd6 {[%clk 0:04:54.4]} 6. Bg3 {[%clk 0:04:51.7]} 6... Qe7 {[%clk
0:04:45.5]} 7. Ngf3 {[%clk 0:04:49.6]} 7... Nbd7 {[%clk 0:04:41.2]} 8. Bd3
{[%clk 0:04:47.7]} 8... O-O {[%clk 0:04:17.9]} 9. Qc2 {[%clk 0:04:46.1]} 9... e5
{[%clk 0:04:12.7]} 10. dxe5 {[%clk 0:04:39]} 10... Nxe5 {[%clk 0:04:12.6]} 11.
Nxe5 {[%clk 0:04:37.6]} 11... Bxe5 {[%clk 0:04:12.4]} 12. Bxe5 {[%clk
0:04:35.3]} 12... Qxe5 {[%clk 0:04:12.3]} 13. Nf3 {[%clk 0:04:33.2]} 13... Qc7
{[%clk 0:04:11]} 14. O-O {[%clk 0:04:31.8]} 14... Bg4 {[%clk 0:04:06.6]} 15. Nd4
{[%clk 0:04:22.1]} 15... Rae8 {[%clk 0:04:04.7]} 16. Rae1 {[%clk 0:04:17]} 16...
h6 {[%clk 0:03:54.8]} 17. Be2 {[%clk 0:04:11.8]} 17... Bc8 {[%clk 0:03:53.2]}
18. Bf3 {[%clk 0:04:04.2]} 18... Re7 {[%clk 0:03:51.2]} 19. Re2 {[%clk
0:03:59.3]} 19... Rfe8 {[%clk 0:03:47.8]} 20. Rfe1 {[%clk 0:03:58.3]} 20... a6
{[%clk 0:03:45.8]} 21. a3 {[%clk 0:03:48]} 21... c5 {[%clk 0:03:32.5]} 22. Nb3
{[%clk 0:03:44.5]} 22... b6 {[%clk 0:03:24.5]} 23. e4 {[%clk 0:03:27.5]} 23...
dxe4 {[%clk 0:03:20.3]} 24. Bxe4 {[%clk 0:03:25.9]} 24... Nxe4 {[%clk
0:03:18.9]} 25. Rxe4 {[%clk 0:03:24.9]} 25... Be6 {[%clk 0:03:11.2]} 26. Nd2
{[%clk 0:03:20.5]} 26... b5 {[%clk 0:03:06.2]} 27. c4 {[%clk 0:03:01.7]} 27...
b4 {[%clk 0:03:01.6]} 28. a4 {[%clk 0:02:54]} 28... g6 {[%clk 0:02:53.5]} 29. b3
{[%clk 0:02:52.9]} 29... Bf5 {[%clk 0:02:48.3]} 30. Rxe7 {[%clk 0:02:25.9]}
30... Rxe7 {[%clk 0:02:48.2]} 31. Qd1 {[%clk 0:02:10.3]} 31... Qd6 {[%clk
0:02:37.8]} 32. Rxe7 {[%clk 0:02:06.1]} 32... Qxe7 {[%clk 0:02:37.7]} 33. h3
{[%clk 0:01:58.4]} 33... Qd6 {[%clk 0:02:23.9]} 34. Qe2 {[%clk 0:01:47.3]} 34...
Qd4 {[%clk 0:02:17.4]} 35. Nf3 {[%clk 0:01:36.7]} 35... Qa1+ {[%clk 0:02:15.6]}
36. Kh2 {[%clk 0:01:34.8]} 36... Qc3 {[%clk 0:02:14.7]} 37. Qe8+ {[%clk
0:01:32.5]} 37... Kg7 {[%clk 0:02:13]} 38. Qe5+ {[%clk 0:01:28.8]} 38... Qxe5+
{[%clk 0:02:12.3]} 39. Nxe5 {[%clk 0:01:27.9]} 39... Bc2 {[%clk 0:02:11.9]} 40.
Nd7 {[%clk 0:01:20.5]} 40... Bxb3 {[%clk 0:02:11]} 41. Nxc5 {[%clk 0:01:19.5]}
41... Bxc4 {[%clk 0:02:10.4]} 42. Kg1 {[%clk 0:01:17.3]} 42... b3 {[%clk
0:02:07.6]} 43. Ne4 {[%clk 0:01:09.5]} 43... b2 {[%clk 0:02:00.5]} 44. Nc3
{[%clk 0:01:08.3]} 44... Bd3 {[%clk 0:01:58]} 45. f3 {[%clk 0:01:06.3]} 45...
b1=Q+ {[%clk 0:01:56.1]} 46. Nxb1 {[%clk 0:01:05.2]} 46... Bxb1 {[%clk 0:01:56]}
47. a5 {[%clk 0:01:03.2]} 47... Bc2 {[%clk 0:01:55.9]} 48. Kf2 {[%clk
0:01:01.4]} 48... Bd3 {[%clk 0:01:55.8]} 49. Ke3 {[%clk 0:00:59.2]} 49... Bb5
{[%clk 0:01:55.7]} 50. g4 {[%clk 0:00:52.5]} 50... f5 {[%clk 0:01:55.6]} 51.
gxf5 {[%clk 0:00:49.7]} 51... Kf6 {[%clk 0:01:55.5]} 52. fxg6 {[%clk 0:00:48]}
52... Kf5 {[%clk 0:01:55.4]} 53. g7 {[%clk 0:00:46.3]} 53... Bc4 {[%clk
0:01:50]} 54. Kd4 {[%clk 0:00:41.7]} 54... Bg8 {[%clk 0:01:48.6]} 55. Kc5 {[%clk
0:00:37.9]} 55... Kg6 {[%clk 0:01:46.8]} 56. Kb6 {[%clk 0:00:36.6]} 56... Kxg7
{[%clk 0:01:46.3]} 57. Kxa6 {[%clk 0:00:35.9]} 57... Bd5 {[%clk 0:01:43.6]} 58.
Kb6 {[%clk 0:00:33.8]} 58... Bxf3 {[%clk 0:01:39.8]} 59. a6 {[%clk 0:00:28.1]}
59... Kg6 {[%clk 0:01:38.1]} 60. Kc5 {[%clk 0:00:23]} 60... Kh5 {[%clk
0:01:33.9]} 61. Kd4 {[%clk 0:00:22]} 61... Kh4 {[%clk 0:01:32.3]} 62. Ke3 {[%clk
0:00:21.2]} 62... Ba8 {[%clk 0:01:31.7]} 63. Kf2 {[%clk 0:00:19.6]} 63... Kxh3
{[%clk 0:01:30.8]} 64. Kg1 {[%clk 0:00:19.2]} 64... h5 {[%clk 0:01:29.4]} 65. a7
{[%clk 0:00:16.5]} 65... h4 {[%clk 0:01:29.3]} 66. Kf1 {[%clk 0:00:15.4]} 66...
Kg3 {[%clk 0:01:24.6]} 67. Kg1 {[%clk 0:00:14.7]} 67... h3 {[%clk 0:01:21.4]}
68. Kf1 {[%clk 0:00:14]} 68... h2 {[%clk 0:01:21.3]} 69. Ke1 {[%clk 0:00:11.3]}
69... h1=Q+ {[%clk 0:01:21.2]} 70. Kd2 {[%clk 0:00:10.5]} 70... Qd5+ {[%clk
0:01:20.9]} 71. Ke3 {[%clk 0:00:09.6]} 71... Qe4+ {[%clk 0:01:19.4]} 72. Kd2
{[%clk 0:00:09]} 72... Kf3 {[%clk 0:01:19.1]} 73. Kc3 {[%clk 0:00:07.4]} 73...
Ke3 {[%clk 0:01:17.7]} 74. Kb2 {[%clk 0:00:07]} 74... Qd5 {[%clk 0:01:17.3]} 75.
Kc1 {[%clk 0:00:06.1]} 75... Kd3 {[%clk 0:01:11.7]} 76. Kb1 {[%clk 0:00:05.7]}
76... Kc3 {[%clk 0:01:09.8]} 77. Ka1 {[%clk 0:00:04.4]} 77... Qb5 {[%clk
0:01:03.6]} 78. Ka2 {[%clk 0:00:03.4]} 78... Qb2# {[%clk 0:01:00]} 0-1

[Event "Live Chess"]
[Site "Chess.com"]
[Date "2024.06.02"]
[Round "-"]
[White "JanMur7"]
[Black "Zhevzh1k7"]
[Result "1-0"]
[WhiteElo "2277"]
[BlackElo "1108"]
[TimeControl "300"]
[EndTime "2:28:32 PDT"]
[Termination "JanMur7 won by resignation"]

1. c4 {[%clk 0:04:58.4]} 1... Nf6 {[%clk 0:04:58.4]} 2. Nc3 {[%clk 0:04:57.1]}
2... e6 {[%clk 0:04:55.9]} 3. e4 {[%clk 0:04:54.8]} 3... Bc5 {[%clk 0:04:52.3]}
4. d4 {[%clk 0:04:53.1]} 4... Bb6 {[%clk 0:04:51.1]} 5. e5 {[%clk 0:04:50]} 5...
Ng8 {[%clk 0:04:47.1]} 6. Qg4 {[%clk 0:04:47.5]} 6... Kf8 {[%clk 0:04:39.8]} 7.
b4 {[%clk 0:04:35.2]} 7... a6 {[%clk 0:04:36.7]} 8. c5 {[%clk 0:04:29.1]} 8...
Ba7 {[%clk 0:04:35.4]} 9. Ne4 {[%clk 0:04:23.4]} 9... Nc6 {[%clk 0:04:30.5]} 10.
Bg5 {[%clk 0:04:11.9]} 10... Nge7 {[%clk 0:04:22.6]} 11. Nf3 {[%clk 0:03:28.6]}
11... Nxb4 {[%clk 0:04:19.3]} 12. Rc1 {[%clk 0:03:17.7]} 12... Nxa2 {[%clk
0:04:13]} 13. Rc4 {[%clk 0:03:06]} 13... b5 {[%clk 0:04:07]} 14. cxb6 {[%clk
0:03:03.6]} 14... Bxb6 {[%clk 0:04:01.8]} 15. Bd3 {[%clk 0:02:44.2]} 15... d5
{[%clk 0:04:00.4]} 16. exd6 {[%clk 0:02:42.2]} 16... cxd6 {[%clk 0:03:54.5]} 17.
Ra4 {[%clk 0:02:30]} 17... Nc1 {[%clk 0:03:44.2]} 18. Bxc1 {[%clk 0:02:23.8]}
18... Ba5+ {[%clk 0:03:29.7]} 19. Bd2 {[%clk 0:02:21.2]} 19... Bxd2+ {[%clk
0:03:28]} 20. Nexd2 {[%clk 0:02:19.3]} 20... e5 {[%clk 0:03:20.9]} 21. Qe4
{[%clk 0:02:08.2]} 21... Bf5 {[%clk 0:03:03.8]} 22. Qe3 {[%clk 0:02:02.8]} 22...
Bxd3 {[%clk 0:02:50.1]} 23. Qxd3 {[%clk 0:02:02.7]} 23... exd4 {[%clk
0:02:32.8]} 24. Rxd4 {[%clk 0:01:56]} 24... Qe8 {[%clk 0:02:25.6]} 25. O-O
{[%clk 0:01:52.7]} 25... f6 {[%clk 0:02:21]} 26. Re1 {[%clk 0:01:49.7]} 26... a5
{[%clk 0:02:15.5]} 27. Rxd6 {[%clk 0:01:47.3]} 27... Kf7 {[%clk 0:02:07]} 28.
Rde6 {[%clk 0:01:42.9]} 28... Ra7 {[%clk 0:02:04.1]} 29. Qe3 {[%clk 0:01:40.3]}
29... Qd7 {[%clk 0:01:58.7]} 30. Nc4 {[%clk 0:01:31.6]} 30... a4 {[%clk
0:01:46.4]} 31. Nce5+ {[%clk 0:01:22.3]} 31... fxe5 {[%clk 0:01:39.4]} 32. Nxe5+
{[%clk 0:01:20.9]} 32... Kxe6 {[%clk 0:01:36.6]} 33. Nxd7+ {[%clk 0:01:20]}
33... Kxd7 {[%clk 0:01:36.3]} 34. Qxa7+ {[%clk 0:01:19]} 34... Kd6 {[%clk
0:01:33.6]} 35. Qxe7+ {[%clk 0:01:17.5]} 1-0

[Event "Live Chess"]
[Site "Chess.com"]
[Date "2024.06.02"]
[Round "-"]
[White "Mikhail_Golubev"]
[Black "crais6"]
[Result "1-0"]
[WhiteElo "2511"]
[BlackElo "1603"]
[TimeControl "300"]
[EndTime "2:29:36 PDT"]
[Termination "Mikhail_Golubev won by resignation"]

1. e4 {[%clk 0:04:57.6]} 1... c5 {[%clk 0:04:57.6]} 2. Nf3 {[%clk 0:04:54.9]}
2... Nc6 {[%clk 0:04:56.1]} 3. Nc3 {[%clk 0:04:53.2]} 3... d6 {[%clk 0:04:49.6]}
4. d4 {[%clk 0:04:51.9]} 4... cxd4 {[%clk 0:04:47.3]} 5. Nxd4 {[%clk 0:04:51.5]}
5... e5 {[%clk 0:04:45.6]} 6. Nf5 {[%clk 0:04:49.3]} 6... Bxf5 {[%clk
0:04:42.1]} 7. exf5 {[%clk 0:04:49.2]} 7... Nf6 {[%clk 0:04:39.5]} 8. Bc4 {[%clk
0:04:44.2]} 8... Be7 {[%clk 0:04:37.2]} 9. O-O {[%clk 0:04:41.4]} 9... O-O
{[%clk 0:04:33]} 10. Be3 {[%clk 0:04:22.5]} 10... a6 {[%clk 0:04:28.1]} 11. Nd5
{[%clk 0:04:18.9]} 11... b5 {[%clk 0:04:20.7]} 12. Bb3 {[%clk 0:04:09.7]} 12...
a5 {[%clk 0:04:08.7]} 13. a4 {[%clk 0:04:06.8]} 13... b4 {[%clk 0:04:03.9]} 14.
Qf3 {[%clk 0:03:54.3]} 14... e4 {[%clk 0:04:00.2]} 15. Nxf6+ {[%clk 0:03:50.8]}
15... Bxf6 {[%clk 0:03:56]} 16. Qxe4 {[%clk 0:03:50.7]} 16... Ne5 {[%clk
0:03:52.7]} 17. Rad1 {[%clk 0:03:47]} 17... Qc7 {[%clk 0:03:48.3]} 18. f4 {[%clk
0:03:25.4]} 18... Ng4 {[%clk 0:03:43.9]} 19. Bc1 {[%clk 0:02:20.9]} 19... Rfe8
{[%clk 0:03:37.3]} 20. Qf3 {[%clk 0:02:17.5]} 20... Nh6 {[%clk 0:03:33.4]} 21.
g4 {[%clk 0:02:10.6]} 21... Qc5+ {[%clk 0:03:26.1]} 22. Kh1 {[%clk 0:02:00.1]}
22... Bd4 {[%clk 0:03:18.3]} 23. Rd3 {[%clk 0:01:46.4]} 23... Kf8 {[%clk
0:02:48.8]} 24. Rfd1 {[%clk 0:01:40.2]} 24... Bf2 {[%clk 0:02:39.7]} 25. Rd5
{[%clk 0:01:30.7]} 1-0

[Event "Live Chess"]
[Site "Chess.com"]
[Date "2024.06.02"]
[Round "-"]
[White "ACM42"]
[Black "Crowded_House"]
[Result "1-0"]
[WhiteElo "2161"]
[BlackElo "1673"]
[TimeControl "300"]
[EndTime "2:29:52 PDT"]
[Termination "ACM42 won by resignation"]

1. e4 {[%clk 0:04:59.4]} 1... e6 {[%clk 0:04:57.2]} 2. d4 {[%clk 0:04:58.1]}
2... d5 {[%clk 0:04:56.8]} 3. Nc3 {[%clk 0:04:56.3]} 3... dxe4 {[%clk
0:04:55.1]} 4. Nxe4 {[%clk 0:04:55.2]} 4... Bd7 {[%clk 0:04:54.9]} 5. Ne2 {[%clk
0:04:53.2]} 5... Bc6 {[%clk 0:04:54.6]} 6. N2g3 {[%clk 0:04:52.6]} 6... Nd7
{[%clk 0:04:51.5]} 7. Bd3 {[%clk 0:04:51.9]} 7... Ngf6 {[%clk 0:04:50.7]} 8. O-O
{[%clk 0:04:50.5]} 8... Nxe4 {[%clk 0:04:49.4]} 9. Nxe4 {[%clk 0:04:47.7]} 9...
Nf6 {[%clk 0:04:47.6]} 10. Ng3 {[%clk 0:04:31.2]} 10... Qd5 {[%clk 0:04:42.3]}
11. f3 {[%clk 0:04:23.2]} 11... Bd6 {[%clk 0:04:39.9]} 12. c3 {[%clk 0:04:21.4]}
12... Bxg3 {[%clk 0:04:33.3]} 13. hxg3 {[%clk 0:04:20.2]} 13... O-O {[%clk
0:04:32.4]} 14. Re1 {[%clk 0:04:14.2]} 14... Rfe8 {[%clk 0:04:23.4]} 15. Re5
{[%clk 0:04:11.2]} 15... Qd6 {[%clk 0:04:17.8]} 16. Qc2 {[%clk 0:04:09.6]} 16...
h6 {[%clk 0:04:08]} 17. Bf4 {[%clk 0:04:00.8]} 17... Qd8 {[%clk 0:03:58.3]} 18.
g4 {[%clk 0:03:59.2]} 18... Nd5 {[%clk 0:03:44.9]} 19. Bg3 {[%clk 0:03:50.8]}
19... f6 {[%clk 0:03:38.6]} 20. Re2 {[%clk 0:03:47.7]} 20... Qd7 {[%clk
0:03:22.1]} 21. Rae1 {[%clk 0:03:46.2]} 21... Re7 {[%clk 0:03:17.9]} 22. a3
{[%clk 0:03:39.1]} 22... Rae8 {[%clk 0:03:16.5]} 23. c4 {[%clk 0:03:35.5]} 23...
Nb6 {[%clk 0:03:11.1]} 24. Bf2 {[%clk 0:03:26.8]} 24... Nc8 {[%clk 0:02:47.3]}
25. b4 {[%clk 0:03:06.4]} 25... b6 {[%clk 0:02:46.4]} 26. Bg6 {[%clk 0:03:04]}
26... Rf8 {[%clk 0:02:43.1]} 27. Qb3 {[%clk 0:02:56.3]} 27... Nd6 {[%clk
0:02:30.8]} 28. d5 {[%clk 0:02:50.8]} 28... Bb7 {[%clk 0:02:21.8]} 29. dxe6
{[%clk 0:02:24.5]} 29... Qd8 {[%clk 0:02:16.8]} 30. c5 {[%clk 0:02:21.9]} 30...
bxc5 {[%clk 0:02:11.6]} 31. bxc5 {[%clk 0:02:20.6]} 31... Bc6 {[%clk 0:01:57.6]}
32. cxd6 {[%clk 0:02:15.4]} 32... Qxd6 {[%clk 0:01:56.4]} 33. Rd1 {[%clk
0:02:05.4]} 33... Qc5 {[%clk 0:01:46.1]} 34. Bxc5 {[%clk 0:02:04.1]} 1-0

[Event "Live Chess"]
[Site "Chess.com"]
[Date "2024.06.02"]
[Round "-"]
[White "CarmelJane"]
[Black "Tatarinov_Maxim"]
[Result "0-1"]
[WhiteElo "2048"]
[BlackElo "2288"]
[TimeControl "300"]
[EndTime "2:29:56 PDT"]
[Termination "Tatarinov_Maxim won by resignation"]

1. e4 {[%clk 0:04:58.9]} 1... c5 {[%clk 0:04:57.7]} 2. Nf3 {[%clk 0:04:57.5]}
2... Nc6 {[%clk 0:04:56.8]} 3. Bb5 {[%clk 0:04:55.4]} 3... g6 {[%clk 0:04:54.4]}
4. O-O {[%clk 0:04:52]} 4... Bg7 {[%clk 0:04:53.7]} 5. Re1 {[%clk 0:04:49.6]}
5... e5 {[%clk 0:04:52.6]} 6. Bxc6 {[%clk 0:04:47.5]} 6... bxc6 {[%clk
0:04:51.5]} 7. d3 {[%clk 0:04:44.2]} 7... Ne7 {[%clk 0:04:50]} 8. Be3 {[%clk
0:04:43.4]} 8... d6 {[%clk 0:04:49.1]} 9. Nbd2 {[%clk 0:04:39.3]} 9... O-O
{[%clk 0:04:48.1]} 10. Nc4 {[%clk 0:04:34.5]} 10... Be6 {[%clk 0:04:44]} 11. b3
{[%clk 0:04:32.5]} 11... h6 {[%clk 0:04:42.1]} 12. Qd2 {[%clk 0:04:27.2]} 12...
Kh7 {[%clk 0:04:41]} 13. h3 {[%clk 0:04:20.5]} 13... f5 {[%clk 0:04:34.9]} 14.
exf5 {[%clk 0:04:15]} 14... Nxf5 {[%clk 0:04:26.2]} 15. Nh2 {[%clk 0:03:55.5]}
15... Qd7 {[%clk 0:04:13.9]} 16. Rad1 {[%clk 0:03:44.7]} 16... Rf7 {[%clk
0:03:56.5]} 17. f4 {[%clk 0:03:26.1]} 17... Nxe3 {[%clk 0:03:46.9]} 18. Qxe3
{[%clk 0:03:06.9]} 18... Bxc4 {[%clk 0:03:28.8]} 19. dxc4 {[%clk 0:02:57.9]}
19... exf4 {[%clk 0:03:27.9]} 20. Qf3 {[%clk 0:02:39.9]} 20... Bd4+ {[%clk
0:03:19.5]} 21. Kh1 {[%clk 0:02:38.3]} 21... Re8 {[%clk 0:03:18]} 22. Ng4 {[%clk
0:02:35.7]} 22... Rxe1+ {[%clk 0:03:13.6]} 23. Rxe1 {[%clk 0:02:34.3]} 23... h5
{[%clk 0:03:04.9]} 24. Nf2 {[%clk 0:02:32.5]} 24... Bxf2 {[%clk 0:02:58]} 25.
Qxf2 {[%clk 0:02:32.4]} 25... f3 {[%clk 0:02:57.4]} 26. Re3 {[%clk 0:02:15.9]}
26... fxg2+ {[%clk 0:02:52.2]} 27. Qxg2 {[%clk 0:02:15.8]} 27... Qf5 {[%clk
0:02:43.7]} 28. Kg1 {[%clk 0:01:26.2]} 28... d5 {[%clk 0:02:27.8]} 29. Re1
{[%clk 0:01:22.8]} 29... dxc4 {[%clk 0:02:14.5]} 30. bxc4 {[%clk 0:01:14.7]}
30... Qf4 {[%clk 0:02:13.2]} 31. Re6 {[%clk 0:01:08.1]} 31... Qd4+ {[%clk
0:02:08.3]} 32. Kh1 {[%clk 0:01:00.9]} 32... Rf6 {[%clk 0:01:30.3]} 33. Rxc6
{[%clk 0:00:31.8]} 33... Qa1+ {[%clk 0:01:18.7]} 34. Kh2 {[%clk 0:00:30.2]}
34... Qe5+ {[%clk 0:01:18.2]} 35. Kh1 {[%clk 0:00:22.1]} 35... Qe1+ {[%clk
0:01:16.9]} 36. Kh2 {[%clk 0:00:19]} 36... Rf2 {[%clk 0:01:15.8]} 0-1